fUSD/lending_fUSD_20250521
["ID","MTS","AMOUNT","RATE_DAILY","PERIOD"]
[361878592,1747861869284,-420.0,0.00038465,30]
[361878593,1747861869294,-290.94344086,0.00038465,30]
[361878594,1747861869938,-4217.22724488,0.00033709,2]
[361878595,1747861869949,-162.8,0.00037808,2]
[361878596,1747861869959,-503.03655914,0.00038465,30]
[361878597,1747861869969,-420.0,0.00038465,30]
[361878598,1747861869979,-686.59,0.00038465,30]
[361878599,1747861869988,-420.0,0.00038465,30]
[361878600,1747861869997,-764.95,0.00038465,30]
[361878601,1747861870007,-485.41,0.00038465,30]
[361878602,1747861870016,-420.0,0.00038465,30]
[361878603,1747861870027,-420.0,0.00038465,30]
[361878604,1747861870036,-420.0,0.00038465,30]
[361878605,1747861870046,-420.0,0.00038465,30]
[361878606,1747861870056,-467.38,0.00038465,30]
[361878607,1747861870065,-420.0,0.00038465,30]
[361878608,1747861870075,-1125.96,0.00038465,30]
[361878609,1747861870085,-163.15365927,0.00038465,30]
[361878610,1747861870095,-420.0,0.00038465,30]
[361878611,1747861870105,-420.0,0.00038465,30]
[361878612,1747861870115,-420.0,0.00038465,30]
[361878613,1747861870124,-420.0,0.00038465,30]
[361878614,1747861870133,-420.0,0.00038465,30]
[361878615,1747861870143,-420.0,0.00038465,30]
[361878616,1747861870154,-420.0,0.00038465,30]
[361878617,1747861870163,-1903.51,0.00038465,30]
[361878618,1747861870174,-556.6,0.00038465,30]
[361878619,1747861870183,-420.0,0.00038465,30]
[361878620,1747861870192,-420.0,0.00038465,30]
[361878621,1747861870201,-1736.53,0.00038465,30]
[361878622,1747861870211,-420.0,0.00038465,30]
[361878623,1747861870221,-194.15253671,0.00038465,30]
[361878624,1747861870266,-225.84746329,0.00038465,30]
[361878625,1747861870279,-65.41455621,0.00038465,30]
[361878626,1747861870290,-300.21196048,0.00038465,30]
[361878627,1747861870307,-564.97348331,0.00038465,30]
[361878628,1747861870317,-686.44,0.00038465,30]
[361878629,1747861870327,-420.0,0.00038465,30]
[361878630,1747861870343,-761.62,0.00038465,30]
[361878631,1747861870354,-420.0,0.00038465,30]
[361878632,1747861870365,-523.04,0.00038465,30]
[361878633,1747861870375,-629.31,0.00038465,30]
[361878634,1747861870386,-769.3,0.00038465,30]
[361878635,1747861870395,-420.0,0.00038465,30]
[361878636,1747861870405,-420.0,0.00038465,30]
[361878637,1747861870415,-420.0,0.00038465,30]
[361878638,1747861870425,-499.29,0.00038465,30]
[361878639,1747861870435,-420.0,0.00038465,30]
[361878640,1747861870444,-420.0,0.00038465,30]
[361878641,1747861870454,-420.0,0.00038465,30]
[361878642,1747861870463,-420.0,0.00038465,30]
[361878643,1747861870473,-420.0,0.00038465,30]
[361878644,1747861870483,-507.93,0.00038465,30]
[361878645,1747861870493,-420.0,0.00038465,30]
[361878646,1747861870504,-420.0,0.00038465,30]
[361878647,1747861870514,-1519.71,0.00038465,30]
[361878648,1747861870525,-420.0,0.00038465,30]
[361878649,1747861870537,-420.0,0.00038465,30]
[361878650,1747861870547,-1149.97,0.00038465,30]
[361878651,1747861870556,-420.0,0.00038465,30]
[361878652,1747861870567,-661.65,0.00038465,30]
[361878653,1747861870577,-447.78,0.00038465,30]
[361878654,1747861870587,-420.0,0.00038465,30]
[361878655,1747861870597,-420.0,0.00038465,30]
[361878656,1747861870607,-699.84,0.00038465,30]
[361878657,1747861870616,-420.0,0.00038465,30]
[361878658,1747861870626,-688.16,0.00038465,30]
[361878659,1747861870635,-420.0,0.00038465,30]
[361878660,1747861870645,-420.0,0.00038465,30]
[361878661,1747861870655,-420.0,0.00038465,30]
[361878662,1747861870666,-576.48,0.00038465,30]
[361878663,1747861870676,-420.0,0.00038465,30]
[361878664,1747861870688,-420.0,0.00038465,30]
[361878665,1747861870698,-1297.99,0.00038465,30]
[361878666,1747861870709,-489.72,0.00038465,30]
[361878667,1747861870719,-420.0,0.00038465,30]
[361878668,1747861870729,-420.0,0.00038465,30]
[361878669,1747861870738,-1449.42,0.00038465,30]
[361878670,1747861870748,-426.26,0.00038465,30]
[361878671,1747861870758,-513.14,0.00038465,30]
[361878672,1747861870767,-420.0,0.00038465,30]
[361878673,1747861870783,-420.0,0.00038465,30]
[361878674,1747861870793,-420.0,0.00038465,30]
[361878675,1747861870803,-1289.67,0.00038465,30]
[361878676,1747861870813,-420.0,0.00038465,30]
[361878677,1747861870823,-589.18,0.00038465,30]
[361878678,1747861870833,-1090.26,0.00038465,30]
[361878679,1747861870843,-1047.81,0.00038465,30]
[361878680,1747861870854,-420.0,0.00038465,30]
[361878681,1747861870867,-1019.02,0.00038465,30]
[361878682,1747861870876,-717.61,0.00038465,30]
[361878683,1747861870887,-805.54,0.00038465,30]
[361878684,1747861870896,-711.11,0.00038465,30]
[361878685,1747861870906,-501.57,0.00038465,30]
[361878686,1747861870916,-1672.88,0.00038465,30]
[361878687,1747861870926,-420.0,0.00038465,30]
[361878688,1747861870935,-2039.76,0.00038465,30]
[361878689,1747861870945,-420.0,0.00038465,30]
[361878690,1747861870955,-420.0,0.00038465,30]
[361878691,1747861870964,-420.0,0.00038465,30]
[361878692,1747861870974,-420.0,0.00038465,7]
[361878693,1747861870984,-420.0,0.00038465,30]
[361878694,1747861870994,-753.54,0.00038465,30]
[361878695,1747861871004,-420.0,0.00038465,30]
[361878696,1747861871014,-420.0,0.00038465,30]
[361878697,1747861871024,-585.36,0.00038465,30]
[361878698,1747861871035,-577.49,0.00038465,30]
[361878699,1747861871045,-420.0,0.00038465,30]
[361878700,1747861871055,-420.0,0.00038465,30]
[361878701,1747861871065,-598.79,0.00038465,30]
[361878702,1747861871074,-276.20005277,0.00038465,30]
[361878703,1747861871084,-420.0,0.00038465,30]
[361878704,1747861871094,-420.0,0.00038465,30]
[361878705,1747861871104,-420.0,0.00038465,30]
[361878706,1747861871114,-420.0,0.00038465,30]
[361878707,1747861871123,-420.0,0.00038465,30]
[361878708,1747861871133,-420.0,0.00038465,30]
[361878709,1747861871143,-1876.95,0.00038465,30]
[361878710,1747861871153,-1020.1,0.00038465,30]
[361878711,1747861871163,-420.0,0.00038465,30]
[361878712,1747861871173,-420.0,0.00038465,30]
[361878713,1747861871182,-420.0,0.00038465,30]
[361878714,1747861871192,-1230.58,0.00038465,30]
[361878715,1747861871201,-420.0,0.00038465,30]
[361878716,1747861871211,-420.0,0.00038465,30]
[361878717,1747861871226,-1226.48,0.00038465,30]
[361878718,1747861871237,-817.2,0.00038465,30]
[361878719,1747861871247,-634.85,0.00038465,30]
[361878720,1747861871257,-3071.18,0.00038465,30]
[361878721,1747861871267,-400.0,0.00038465,30]
[361878722,1747861871280,-420.0,0.00038465,30]
[361878723,1747861871290,-593.76,0.00038465,30]
[361878724,1747861871300,-1520.19,0.00038465,30]
[361878725,1747861871310,-420.0,0.00038465,30]
[361878726,1747861871321,-420.0,0.00038465,30]
[361878727,1747861871331,-420.0,0.00038465,30]
[361878728,1747861871343,-420.0,0.00038465,30]
[361878729,1747861871353,-886.13,0.00038465,30]
[361878730,1747861871363,-213.92275783,0.00038465,30]
[361878731,1747861871380,-939.53724217,0.00038465,30]
[361878732,1747861871390,-552.68,0.00038465,30]
[361878733,1747861871400,-420.0,0.00038465,30]
[361878734,1747861871410,-646.12,0.00038465,30]
[361878735,1747861871420,-420.0,0.00038465,30]
[361878736,1747861871430,-771.6,0.00038465,30]
[361878737,1747861871440,-793.85,0.00038465,30]
[361878738,1747861871450,-420.0,0.00038465,30]
[361878739,1747861871460,-961.55,0.00038465,30]
[361878740,1747861871472,-420.0,0.00038465,30]
[361878741,1747861871482,-46.90792133,0.00038465,30]
[361878742,1747861871496,-373.09207867,0.00038465,30]
[361878743,1747861871508,-1873.49,0.00038465,30]
[361878744,1747861871520,-521.12,0.00038465,30]
[361878745,1747861871530,-1888.93572133,0.00038465,30]
[361878746,1747861871551,-50.26427867,0.00038465,30]
[361878747,1747861871563,-420.0,0.00038465,30]
[361878748,1747861871574,-420.0,0.00038465,30]
[361878749,1747861871584,-420.0,0.00038465,30]
[361878750,1747861871594,-420.0,0.00038465,30]
[361878751,1747861871603,-420.0,0.00038465,30]
[361878752,1747861871613,-443.78,0.00038465,30]
[361878753,1747861871623,-1463.31,0.00038465,30]
[361878754,1747861871632,-846.17,0.00038465,30]
[361878755,1747861871642,-420.0,0.00038465,30]
[361878756,1747861871653,-420.0,0.00038465,30]
[361878757,1747861871662,-368.0747573,0.00038465,2]
[361878758,1747861871673,-420.0,0.00038465,30]
[361878759,1747861871685,-635.0,0.00038465,30]
[361878760,1747861871695,-436.16,0.00038465,30]
[361878761,1747861871706,-420.0,0.00038465,30]
[361878762,1747861871718,-420.0,0.00038465,30]
[361878763,1747861871728,-530.97,0.00038465,30]
[361878764,1747861871738,-545.5,0.00038465,30]
[361878765,1747861871749,-420.0,0.00038465,30]
[361878766,1747861871758,-420.0,0.00038465,30]
[361878767,1747861871768,-1745.3,0.00038465,30]
[361878768,1747861871778,-420.0,0.00038465,30]
[361878769,1747861871788,-607.13,0.00038465,30]
[361878770,1747861871797,-320.93,0.00038465,30]
[361878771,1747861871808,-1540.96,0.00038465,30]
[361878772,1747861871819,-448.59,0.00038465,30]
[361878773,1747861871830,-434.96,0.00038465,30]
[361878774,1747861871839,-903.75,0.00038465,30]
[361878775,1747861871850,-420.0,0.00038465,30]
[361878776,1747861871861,-481.39,0.00038465,30]
[361878777,1747861871871,-420.0,0.00038465,30]
[361878778,1747861871881,-1488.66,0.00038465,30]
[361878779,1747861871892,-420.0,0.00038465,30]
[361878780,1747861871903,-492.61,0.00038465,30]
[361878781,1747861871913,-420.0,0.00038465,30]
[361878782,1747861871923,-420.0,0.00038465,16]
[361878783,1747861871932,-917.75,0.00038465,30]
[361878784,1747861871941,-151.0,0.00038465,14]
[361878785,1747861871951,-151.0,0.00038465,14]
[361878786,1747861871960,-420.0,0.00038465,30]
[361878787,1747861871971,-1490.04,0.00038465,30]
[361878788,1747861871982,-420.0,0.00038465,30]
[361878789,1747861871993,-574.95,0.00038465,30]
[361878790,1747861872004,-659.06,0.00038465,30]
[361878791,1747861872014,-420.0,0.00038465,30]
[361878792,1747861872025,-420.0,0.00038465,30]
[361878793,1747861872037,-151.0,0.00038465,14]
[361878794,1747861872050,-151.0,0.00038465,14]
[361878795,1747861872063,-638.76,0.00038465,30]
[361878796,1747861872074,-1471.9,0.00038465,30]
[361878797,1747861872087,-420.0,0.00038465,30]
[361878798,1747861872099,-536.26,0.00038465,30]
[361878799,1747861872111,-420.0,0.00038465,30]
[361878800,1747861872123,-420.0,0.00038465,30]
[361878801,1747861872134,-1495.54,0.00038465,30]
[361878802,1747861872145,-420.0,0.00038465,30]
[361878803,1747861872155,-420.0,0.00038465,30]
[361878804,1747861872166,-1595.95,0.00038465,30]
[361878805,1747861872177,-420.0,0.00038465,30]
[361878806,1747861872187,-532.1,0.00038465,30]
[361878807,1747861872198,-910.98,0.00038465,30]
[361878808,1747861872208,-655.67,0.00038465,30]
[361878809,1747861872218,-1381.93,0.00038465,30]
[361878810,1747861872229,-468.16,0.00038465,30]
[361878811,1747861872239,-1032.86,0.00038465,30]
[361878812,1747861872250,-420.0,0.00038465,30]
[361878813,1747861872260,-869.94,0.00038465,30]
[361878814,1747861872271,-444.51,0.00038465,30]
[361878815,1747861872284,-609.4,0.00038465,30]
[361878816,1747861872295,-420.0,0.00038465,30]
[361878817,1747861872305,-420.0,0.00038465,30]
[361878818,1747861872315,-420.0,0.00038465,30]
[361878819,1747861872326,-420.0,0.00038465,30]
[361878820,1747861872336,-1820.62,0.00038465,30]
[361878821,1747861872347,-1816.88,0.00038465,30]
[361878822,1747861872358,-797.53,0.00038465,30]
[361878823,1747861872369,-420.0,0.00038465,30]
[361878824,1747861872379,-1084.44,0.00038465,30]
[361878825,1747861872390,-928.92,0.00038465,30]
[361878826,1747861872401,-2883.52,0.00038465,30]
[361878827,1747861872411,-420.0,0.00038465,30]
[361878828,1747861872422,-562.35,0.00038465,30]
[361878829,1747861872433,-420.0,0.00038465,30]
[361878830,1747861872443,-933.25,0.00038465,30]
[361878831,1747861872454,-420.0,0.00038465,30]
[361878832,1747861872465,-420.0,0.00038465,5]
[361878833,1747861872475,-420.0,0.00038465,30]
[361878834,1747861872486,-262.251309,0.00038465,14]
[361878835,1747861872496,-420.0,0.00038465,30]
[361878836,1747861872507,-447.1,0.00038465,30]
[361878837,1747861872518,-262.251309,0.00038465,14]
[361878838,1747861872528,-420.0,0.00038465,30]
[361878839,1747861872539,-151.0,0.00038465,14]
[361878840,1747861872550,-420.0,0.00038465,30]
[361878841,1747861872563,-151.0,0.00038465,14]
[361878842,1747861872575,-420.0,0.00038465,30]
[361878843,1747861872586,-891.69,0.00038465,7]
[361878844,1747861872596,-262.251309,0.00038465,14]
[361878845,1747861872606,-743.61,0.00038465,30]
[361878846,1747861872617,-262.251309,0.00038465,14]
[361878847,1747861872628,-420.0,0.00038465,30]
[361878848,1747861872638,-420.0,0.00038465,30]
[361878849,1747861872649,-420.0,0.00038465,30]
[361878850,1747861872659,-1533.83,0.00038465,30]
[361878851,1747861872670,-806.01,0.00038465,30]
[361878852,1747861872682,-1531.32,0.00038465,30]
[361878853,1747861872693,-420.0,0.00038465,30]
[361878854,1747861872704,-420.0,0.00038465,30]
[361878855,1747861872715,-247.88,0.00038465,30]
[361878856,1747861872726,-472.97431317,0.00038465,30]
[361878857,1747861872737,-1091.05,0.00038465,30]
[361878858,1747861872749,-420.0,0.00038465,30]
[361878859,1747861872760,-1640.42,0.00038465,30]
[361878860,1747861872771,-953.17,0.00038465,30]
[361878861,1747861872782,-420.0,0.00038465,30]
[361878862,1747861872792,-516.05,0.00038465,30]
[361878863,1747861872803,-420.0,0.00038465,30]
[361878864,1747861872814,-420.0,0.00038465,30]
[361878865,1747861872825,-420.0,0.00038465,30]
[361878866,1747861872836,-420.0,0.00038465,30]
[361878867,1747861872847,-420.0,0.00038465,30]
[361878868,1747861872859,-1596.54,0.00038465,30]
[361878869,1747861872870,-420.0,0.00038465,30]
[361878870,1747861872882,-433.69,0.00038465,30]
[361878871,1747861872893,-1120.7,0.00038465,30]
[361878872,1747861872904,-420.0,0.00038465,30]
[361878873,1747861872915,-420.0,0.00038465,30]
[361878874,1747861872926,-420.0,0.00038465,30]
[361878875,1747861872937,-934.19,0.00038465,30]
[361878876,1747861872948,-420.0,0.00038465,30]
[361878877,1747861872960,-413.99077948,0.00038465,30]
[361878878,1747861872972,-572.52,0.00038465,30]
[361878879,1747861872983,-329.25,0.00038465,30]
[361878880,1747861872994,-490.93,0.00038465,30]
[361878881,1747861873005,-601.7,0.00038465,30]
[361878882,1747861873016,-723.8,0.00038465,30]
[361878883,1747861873028,-420.0,0.00038465,30]
[361878884,1747861873040,-712.93,0.00038465,30]
[361878885,1747861873051,-222.31,0.00038465,30]
[361878886,1747861873062,-519.44,0.00038465,30]
[361878887,1747861873073,-420.0,0.00038465,30]
[361878888,1747861873083,-313.95,0.00038465,30]
[361878889,1747861873095,-1428.52,0.00038465,30]
[361878890,1747861873106,-420.0,0.00038465,30]
[361878891,1747861873117,-848.62,0.00038465,30]
[361878892,1747861873128,-1618.25,0.00038465,30]
[361878893,1747861873139,-1873.68,0.00038465,30]
[361878894,1747861873150,-1453.88,0.00038465,30]
[361878895,1747861873161,-420.0,0.00038465,30]
[361878896,1747861873172,-493.28,0.00038465,30]
[361878897,1747861873184,-420.0,0.00038465,30]
[361878898,1747861873195,-420.0,0.00038465,30]
[361878899,1747861873206,-572.56,0.00038465,30]
[361878900,1747861873216,-151.0,0.00038465,14]
[361878901,1747861873228,-151.0,0.00038465,14]
[361878902,1747861873239,-822.37,0.00038465,30]
[361878903,1747861873251,-1285.56,0.00038465,30]
[361878904,1747861873261,-568.0,0.00038465,30]
[361878905,1747861873272,-905.95,0.00038465,30]
[361878906,1747861873286,-1528.59,0.00038465,30]
[361878907,1747861873298,-420.0,0.00038465,30]
[361878908,1747861873311,-420.0,0.00038465,30]
[361878909,1747861873323,-1163.19,0.00038465,30]
[361878910,1747861873334,-1260.44,0.00038465,30]
[361878911,1747861873344,-420.0,0.00038465,30]
[361878912,1747861873356,-766.99,0.00038465,30]
[361878913,1747861873367,-1088.41,0.00038465,30]
[361878914,1747861873378,-420.0,0.00038465,30]
[361878915,1747861873389,-379.99091988,0.00038465,30]
[361878916,1747861873400,-420.0,0.00038465,30]
[361878917,1747861873412,-420.0,0.00038465,30]
[361878918,1747861873424,-420.0,0.00038465,30]
[361878919,1747861873435,-420.0,0.00038465,30]
[361878920,1747861873447,-420.0,0.00038465,30]
[361878921,1747861873458,-420.0,0.00038465,30]
[361878922,1747861873470,-1781.82,0.00038465,30]
[361878923,1747861873481,-960.66,0.00038465,30]
[361878924,1747861873492,-1996.3,0.00038465,30]
[361878925,1747861873503,-442.04,0.00038465,30]
[361878926,1747861873514,-420.0,0.00038465,30]
[361878927,1747861873525,-420.0,0.00038465,30]
[361878929,1747861873536,-740.17,0.00038465,30]
[361878930,1747861873547,-420.0,0.00038465,30]
[361878931,1747861873558,-420.0,0.00038465,30]
[361878932,1747861873568,-420.0,0.00038465,30]
[361878933,1747861873578,-1094.71,0.00038465,30]
[361878934,1747861873589,-734.74,0.00038465,30]
[361878935,1747861873599,-416.33899347,0.00038465,30]
[361878936,1747861873610,-1009.13,0.00038465,30]
[361878937,1747861873620,-457.56,0.00038465,30]
[361878938,1747861873630,-1332.71,0.00038465,30]
[361878939,1747861873641,-420.0,0.00038465,30]
[361878940,1747861873651,-1456.01,0.00038465,30]
[361878941,1747861873662,-420.0,0.00038465,30]
[361878942,1747861873673,-420.0,0.00038465,30]
[361878943,1747861873684,-552.80688113,0.00038465,30]
[361878944,1747861873695,-420.0,0.00038465,30]
[361878945,1747861873706,-420.0,0.00038465,30]
[361878946,1747861873717,-965.55,0.00038465,30]
[361878947,1747861873728,-420.0,0.00038465,30]
[361878948,1747861873739,-420.0,0.00038465,30]
[361878949,1747861873751,-910.68,0.00038465,30]
[361878950,1747861873762,-420.0,0.00038465,30]
[361878951,1747861873772,-1381.74,0.00038465,30]
[361878952,1747861873783,-420.0,0.00038465,30]
[361878953,1747861873794,-420.0,0.00038465,30]
[361878954,1747861873806,-1536.24,0.00038465,30]
[361878955,1747861873817,-420.0,0.00038465,30]
[361878956,1747861873829,-420.0,0.00038465,30]
[361878957,1747861873840,-459.54,0.00038465,30]
[361878958,1747861873851,-669.14,0.00038465,30]
[361878959,1747861873862,-535.58,0.00038465,30]
[361878960,1747861873872,-963.81,0.00038465,30]
[361878961,1747861873883,-420.0,0.00038465,30]
[361878962,1747861873894,-420.0,0.00038465,30]
[361878963,1747861873905,-420.0,0.00038465,14]
[361878964,1747861873916,-420.0,0.00038465,30]
[361878965,1747861873927,-3110.47,0.00038465,30]
[361878966,1747861873938,-420.0,0.00038465,30]
[361878967,1747861873950,-741.05,0.00038465,30]
[361878968,1747861873960,-478.18,0.00038465,30]
[361878969,1747861873971,-420.0,0.00038465,30]
[361878970,1747861873982,-1550.32,0.00038465,30]
[361878971,1747861873993,-995.89,0.00038465,30]
[361878972,1747861874004,-1248.67,0.00038465,30]
[361878973,1747861874016,-537.78,0.00038465,30]
[361878974,1747861874027,-420.0,0.00038465,30]
[361878975,1747861874038,-420.0,0.00038465,30]
[361878976,1747861874049,-597.8,0.00038465,30]
[361878977,1747861874061,-420.0,0.00038465,30]
[361878978,1747861874073,-420.0,0.00038465,30]
[361878979,1747861874084,-1448.46,0.00038465,30]
[361878980,1747861874096,-1709.46,0.00038465,30]
[361878981,1747861874107,-420.0,0.00038465,30]
[361878982,1747861874118,-420.0,0.00038465,30]
[361878983,1747861874130,-420.0,0.00038465,30]
[361878984,1747861874141,-1066.57,0.00038465,30]
[361878985,1747861874152,-420.0,0.00038465,30]
[361878986,1747861874164,-420.0,0.00038465,30]
[361878987,1747861874176,-793.69,0.00038465,30]
[361878988,1747861874186,-420.0,0.00038465,30]
[361878989,1747861874197,-420.0,0.00038465,30]
[361878990,1747861874208,-420.0,0.00038465,30]
[361878991,1747861874218,-539.1,0.00038465,30]
[361878992,1747861874229,-1141.0,0.00038465,30]
[361878993,1747861874240,-420.0,0.00038465,30]
[361878994,1747861874251,-2361.99,0.00038465,30]
[361878995,1747861874261,-420.0,0.00038465,30]
[361878996,1747861874273,-433.78,0.00038465,30]
[361878997,1747861874284,-420.0,0.00038465,30]
[361878998,1747861874295,-514.17,0.00038465,30]
[361878999,1747861874307,-420.0,0.00038465,30]
[361879000,1747861874318,-531.29,0.00038465,30]
[361879001,1747861874329,-773.41,0.00038465,30]
[361879002,1747861874340,-611.63,0.00038465,30]
[361879003,1747861874352,-1653.72,0.00038465,30]
[361879004,1747861874363,-1346.5,0.00038465,30]
[361879005,1747861874375,-394.52,0.00038465,30]
[361879006,1747861874387,-740.43,0.00038465,30]
[361879007,1747861874398,-420.0,0.00038465,30]
[361879008,1747861874409,-420.0,0.00038465,30]
[361879009,1747861874420,-420.0,0.00038465,30]
[361879010,1747861874432,-756.99,0.00038465,30]
[361879011,1747861874444,-420.0,0.00038465,30]
[361879012,1747861874455,-420.0,0.00038465,30]
[361879013,1747861874466,-420.0,0.00038465,30]
[361879014,1747861874478,-420.0,0.00038465,30]
[361879015,1747861874491,-1068.87,0.00038465,30]
[361879016,1747861874501,-420.0,0.00038465,30]
[361879017,1747861874513,-3897.37,0.00038465,30]
[361879018,1747861874524,-420.0,0.00038465,30]
[361879019,1747861874536,-537.57,0.00038465,30]
[361879020,1747861874547,-420.0,0.00038465,30]
[361879021,1747861874558,-161.68557607,0.00038465,30]
[361879022,1747861874569,-888.57,0.00038465,30]
[361879023,1747861874581,-420.0,0.00038465,30]
[361879024,1747861874592,-427.11213196,0.00038465,30]
[361879025,1747861874603,-1499.54,0.00038465,30]
[361879026,1747861874614,-473.88,0.00038465,30]
[361879027,1747861874626,-527.16,0.00038465,30]
[361879028,1747861874637,-420.0,0.00038465,30]
[361879029,1747861874648,-420.0,0.00038465,30]
[361879030,1747861874660,-673.62,0.00038465,30]
[361879031,1747861874671,-707.46,0.00038465,30]
[361879032,1747861874683,-1206.67,0.00038465,30]
[361879033,1747861875045,-200.9426384,0.00038465,30]
[361879034,1747861875056,-566.67,0.00038465,30]
[361879035,1747861875066,-1500.39,0.00038465,30]
[361879036,1747861875076,-420.0,0.00038465,30]
[361879037,1747861875086,-420.0,0.00038465,30]
[361879038,1747861875096,-420.0,0.00038465,30]
[361879039,1747861875105,-1244.32,0.00038465,30]
[361879040,1747861875115,-397.06372292,0.00038465,30]
[361879041,1747861875126,-1205.64,0.00038465,30]
[361879042,1747861875136,-420.0,0.00038465,30]
[361879043,1747861875145,-508.45,0.00038465,30]
[361879044,1747861875156,-186.54041802,0.00038465,30]
[361879045,1747861875166,-420.0,0.00038465,30]
[361879046,1747861875176,-420.0,0.00038465,30]
[361879047,1747861875186,-609.3,0.00038465,30]
[361879048,1747861875196,-420.0,0.00038465,30]
[361879049,1747861875205,-1891.07,0.00038465,30]
[361879050,1747861875215,-201.404965,0.00038465,14]
[361879051,1747861875225,-1617.22,0.00038465,30]
[361879052,1747861875234,-201.404965,0.00038465,14]
[361879053,1747861875244,-1514.8,0.00038465,30]
[361879054,1747861875253,-483.72,0.00038465,30]
[361879055,1747861875263,-1039.07,0.00038465,30]
[361879056,1747861875273,-719.73,0.00038465,30]
[361879057,1747861875288,-420.0,0.00038465,30]
[361879058,1747861875297,-420.0,0.00038465,30]
[361879059,1747861875308,-420.0,0.00038465,30]
[361879060,1747861875318,-420.0,0.00038465,30]
[361879061,1747861875329,-279.21,0.00038465,30]
[361879062,1747861875338,-798.13,0.00038465,30]
[361879063,1747861875349,-534.13,0.00038465,30]
[361879064,1747861875362,-1212.47,0.00038465,30]
[361879065,1747861875372,-2670.67,0.00038465,30]
[361879066,1747861875381,-474.68,0.00038465,30]
[361879067,1747861875393,-1120.91,0.00038465,30]
[361879068,1747861875403,-1449.63,0.00038465,30]
[361879069,1747861875413,-1045.53,0.00038465,30]
[361879070,1747861875424,-525.72,0.00038465,30]
[361879071,1747861875433,-420.0,0.00038465,30]
[361879072,1747861875443,-583.38,0.00038465,30]
[361879073,1747861875452,-593.84,0.00038465,30]
[361879074,1747861875464,-584.94,0.00038465,30]
[361879075,1747861875474,-420.0,0.00038465,30]
[361879076,1747861875485,-420.0,0.00038465,30]
[361879077,1747861875497,-420.0,0.00038465,30]
[361879078,1747861875507,-420.0,0.00038465,30]
[361879079,1747861875518,-455.16072094,0.00038465,30]
[361879080,1747861875528,-1768.64,0.00038465,30]
[361879081,1747861875538,-420.0,0.00038465,30]
[361879082,1747861875548,-420.0,0.00038465,30]
[361879083,1747861875559,-258.46,0.00038465,30]
[361879084,1747861875569,-728.86,0.00038465,30]
[361879085,1747861875579,-420.0,0.00038465,30]
[361879086,1747861875589,-1472.58,0.00038465,30]
[361879087,1747861875599,-1314.92,0.00038465,30]
[361879088,1747861875608,-191.07320244,0.00038465,30]
[361879089,1747861875623,-420.0,0.00038465,30]
[361879090,1747861875634,-151.0,0.00038465,14]
[361879091,1747861875643,-451.84,0.00038465,30]
[361879092,1747861875654,-151.0,0.00038465,14]